fUST/lending_fUST_20250821
["ID","MTS","AMOUNT","RATE_DAILY","PERIOD"]
[380460313,1755781843700,-480.0,0.00021917,3]
[380460314,1755781843709,-231.62408221,0.00021917,3]
[380460315,1755781843719,-629.70302226,0.00021917,3]
[380460316,1755781843728,-480.0,0.00021917,3]
[380460317,1755781843738,-480.0,0.00021917,3]
[380460318,1755781843747,-591.8,0.00021917,3]
[380460319,1755781843756,-480.0,0.00021917,3]
[380460320,1755781843765,-1476.24,0.00021917,3]
[380460321,1755781843776,-480.0,0.00021917,3]
[380460322,1755781843793,-480.0,0.00021917,3]
[380460323,1755781843802,-517.87,0.00021917,3]
[380460324,1755781843811,-480.0,0.00021917,3]
[380460325,1755781843819,-4547.66,0.00021917,3]
[380460326,1755781843829,-480.0,0.00021917,3]
[380460327,1755781843838,-480.0,0.00021917,3]
[380460328,1755781843847,-480.0,0.00021917,3]
[380460329,1755781843856,-480.0,0.00021917,3]
[380460330,1755781843866,-480.0,0.00021917,3]
[380460331,1755781843875,-855.27,0.00021917,3]
[380460332,1755781843883,-480.0,0.00021917,3]
[380460333,1755781843891,-1746.58,0.00021917,3]
[380460334,1755781843898,-480.0,0.00021917,3]
[380460335,1755781843907,-480.0,0.00021917,3]
[380460336,1755781843921,-666.1,0.00021917,3]
[380460337,1755781843931,-441.4380161,0.00021917,3]
[380460338,1755781843940,-480.0,0.00021917,3]
[380460339,1755781843949,-480.0,0.00021917,3]
[380460340,1755781843959,-567.5,0.00021917,3]
[380460341,1755781843968,-519.78,0.00021917,3]
[380460342,1755781843977,-151.0,0.00021917,2]
[380460343,1755781843986,-589.26,0.00021917,3]
[380460344,1755781843997,-151.0,0.00021917,2]
[380460346,1755781844008,-151.0,0.00021917,2]
[380460347,1755781844016,-480.0,0.00021917,3]
[380460348,1755781844025,-480.0,0.00021917,3]
[380460350,1755781844034,-290.170859,0.00021917,2]
[380460352,1755781844044,-1011.63,0.00021917,3]
[380460353,1755781844054,-151.0,0.00021917,2]
[380460354,1755781844063,-482.67420635,0.00021917,3]
[380460355,1755781844072,-480.0,0.00021917,3]
[380460356,1755781844081,-480.0,0.00021917,3]
[380460357,1755781844089,-480.0,0.00021917,3]
[380460358,1755781844097,-784.12,0.00021917,3]
[380460359,1755781844105,-480.0,0.00021917,3]
[380460360,1755781844114,-480.0,0.00021917,3]
[380460361,1755781844122,-480.0,0.00021917,3]
[380460362,1755781844131,-501.34,0.00021917,3]
[380460363,1755781844140,-154.42863123,0.00021917,3]
[380460364,1755781844150,-8248.08,0.00021917,3]
[380460365,1755781844159,-500.0,0.00021917,3]
[380460366,1755781844168,-500.0,0.00021917,3]
[380460367,1755781844177,-151.0,0.00021917,3]
[380460368,1755781844186,-653.57,0.00021917,3]
[380460369,1755781844196,-151.0,0.00021917,3]
[380460370,1755781844206,-1063.47,0.00021917,3]
[380460371,1755781844215,-500.0,0.00021917,3]
[380460372,1755781844224,-480.0,0.00021917,3]
[380460373,1755781844233,-500.0,0.00021917,3]
[380460374,1755781844242,-500.0,0.00021917,3]
[380460375,1755781844251,-500.0,0.00021917,3]
[380460376,1755781844260,-500.0,0.00021917,3]
[380460377,1755781844269,-480.0,0.00021917,3]
[380460378,1755781844279,-413.34283794,0.00021917,3]
[380460379,1755781844291,-480.0,0.00021917,3]
[380460380,1755781844301,-480.0,0.00021917,3]
[380460381,1755781844312,-151.0,0.00021917,2]
[380460382,1755781844323,-2543.02,0.00021917,2]
[380460383,1755781844334,-151.0,0.00021917,2]
[380460384,1755781844343,-480.0,0.00021917,3]
[380460385,1755781844352,-480.0,0.00021917,3]
[380460386,1755781844361,-151.0,0.00021917,3]
[380460387,1755781844371,-480.0,0.00021917,3]
[380460388,1755781844380,-480.0,0.00021917,3]
[380460389,1755781844389,-151.0,0.00021917,3]
[380460390,1755781844399,-480.0,0.00021917,3]
[380460391,1755781844408,-480.0,0.00021917,3]
[380460392,1755781844417,-688.85,0.00021917,3]
[380460393,1755781844427,-480.0,0.00021917,3]
[380460394,1755781844438,-480.0,0.00021917,3]
[380460395,1755781844447,-913.56,0.00021917,2]
[380460396,1755781844456,-480.0,0.00021917,3]
[380460397,1755781844465,-4534.11,0.00021917,3]
[380460398,1755781844475,-481.92935099,0.00021917,3]
[380460399,1755781844485,-1000.0,0.00021917,3]
[380460400,1755781844494,-7830.46,0.00021917,3]
[380460401,1755781844503,-480.0,0.00021917,3]
[380460402,1755781844512,-480.0,0.00021917,3]
[380460403,1755781844522,-873.95,0.00021917,3]
[380460404,1755781844533,-2550.03,0.00021917,3]
[380460405,1755781844544,-480.0,0.00021917,3]
[380460406,1755781844553,-480.0,0.00021917,3]
[380460407,1755781844563,-10502.11,0.00021917,3]
[380460408,1755781844572,-151.0,0.00021917,2]
[380460409,1755781844583,-151.0,0.00021917,2]
[380460410,1755781844597,-151.0,0.00021917,2]
[380460411,1755781844609,-480.0,0.00021917,3]
[380460412,1755781844619,-1914.32,0.00021917,3]
[380460413,1755781844629,-1580.38,0.00021917,3]
[380460414,1755781844639,-2578.1,0.00021917,3]
[380460415,1755781844649,-1423.35,0.00021917,3]
[380460416,1755781844661,-151.0,0.00021917,2]
[380460417,1755781844670,-282.067784,0.00021917,2]
[380460418,1755781844680,-1185.06,0.00021917,3]
[380460419,1755781844690,-151.0,0.00021917,2]
[380460420,1755781844699,-555.99,0.00021917,3]
[380460421,1755781844708,-513.14,0.00021917,3]
[380460422,1755781844717,-151.0,0.00021917,3]
[380460423,1755781844726,-151.0,0.00021917,2]
[380460424,1755781844735,-2504.57,0.00021917,3]
[380460425,1755781844745,-151.0,0.00021917,3]
[380460426,1755781844754,-6269.21,0.00021917,3]
[380460427,1755781844764,-480.0,0.00021917,3]
[380460428,1755781844774,-500.0,0.00021917,3]
[380460429,1755781844784,-962.06,0.00021917,3]
[380460430,1755781844795,-151.0,0.00021917,3]
[380460431,1755781844804,-151.0,0.00021917,2]
[380460432,1755781844814,-151.0,0.00021917,2]
[380460433,1755781844824,-480.0,0.00021917,3]
[380460434,1755781844839,-480.0,0.00021917,3]
[380460435,1755781844853,-151.0,0.00021917,2]
[380460436,1755781844867,-1039.54,0.00021917,3]
[380460437,1755781844878,-480.0,0.00021917,3]
[380460438,1755781844891,-151.0,0.00021917,2]
[380460439,1755781844904,-480.0,0.00021917,3]
[380460440,1755781844919,-828.83,0.00021917,3]
[380460441,1755781844934,-480.0,0.00021917,3]
[380460442,1755781844948,-480.0,0.00021917,3]
[380460443,1755781844963,-480.0,0.00021917,3]
[380460444,1755781844976,-480.0,0.00021917,3]
[380460445,1755781844989,-1159.94,0.00021917,3]
[380460446,1755781845004,-561.17,0.00021917,3]
[380460447,1755781845016,-480.0,0.00021917,3]
[380460448,1755781845032,-480.0,0.00021917,3]
[380460449,1755781845049,-1227.4,0.00021917,3]
[380460450,1755781845071,-1662.57,0.00021917,3]
[380460451,1755781845093,-579.67,0.00021917,3]
[380460452,1755781845116,-480.0,0.00021917,3]
[380460453,1755781845138,-2271.59,0.00021917,3]
[380460454,1755781845152,-480.0,0.00021917,3]
[380460455,1755781845165,-151.0,0.00021917,2]
[380460456,1755781845179,-151.0,0.00021917,2]
[380460457,1755781845193,-151.0,0.00021917,2]
[380460458,1755781845208,-151.0,0.00021917,2]
[380460459,1755781845219,-480.0,0.00021917,3]
[380460460,1755781845229,-151.0,0.00021917,2]
[380460461,1755781845240,-3515.75,0.00021917,3]
[380460462,1755781845254,-151.0,0.00021917,2]
[380460463,1755781845268,-252.913816,0.00021917,2]
[380460464,1755781845278,-480.0,0.00021917,3]
[380460465,1755781845294,-1832.02,0.00021917,3]
[380460466,1755781845305,-151.0,0.00021917,2]
[380460467,1755781845318,-2844.74,0.00021917,3]
[380460468,1755781845329,-1319.63,0.00021917,3]
[380460469,1755781845340,-151.0,0.00021917,2]
[380460470,1755781845351,-151.0,0.00021917,2]
[380460471,1755781845363,-201.964818,0.00021917,2]
[380460472,1755781845375,-480.0,0.00021917,3]
[380460473,1755781845387,-480.0,0.00021917,3]
[380460474,1755781845399,-480.0,0.00021917,3]
[380460475,1755781845410,-480.0,0.00021917,3]
[380460476,1755781845421,-480.0,0.00021917,3]
[380460477,1755781845433,-500.0,0.00021917,3]
[380460478,1755781845445,-7476.37,0.00021917,3]
[380460479,1755781845456,-873.37,0.00021917,3]
[380460480,1755781845468,-714.68,0.00021917,3]
[380460481,1755781845480,-480.0,0.00021917,3]
[380460482,1755781845491,-480.0,0.00021917,3]
[380460483,1755781845503,-480.0,0.00021917,3]
[380460484,1755781845514,-500.0,0.00021917,3]
[380460485,1755781845526,-421.41100767,0.00021917,3]
[380460486,1755781845538,-480.0,0.00021917,3]
[380460487,1755781845550,-182.07594374,0.00021917,3]
[380460488,1755781845564,-480.0,0.00021917,3]
[380460489,1755781845576,-480.0,0.00021917,3]
[380460490,1755781845587,-480.0,0.00021917,3]
[380460491,1755781845598,-480.0,0.00021917,3]
[380460492,1755781845609,-900.39,0.00021917,3]
[380460493,1755781845620,-480.0,0.00021917,3]
[380460494,1755781845632,-4857.81,0.00021917,3]
[380460495,1755781845643,-480.0,0.00021917,3]
[380460496,1755781845655,-480.0,0.00021917,3]
[380460497,1755781845667,-480.0,0.00021917,3]
[380460498,1755781845678,-1035.5,0.00021917,3]
[380460499,1755781845690,-480.0,0.00021917,3]
[380460500,1755781845701,-640.0,0.00021917,3]
[380460501,1755781845713,-151.0,0.00021917,2]
[380460502,1755781845724,-480.0,0.00021917,3]
[380460503,1755781845736,-151.0,0.00021917,2]
[380460504,1755781845747,-480.0,0.00021917,3]
[380460505,1755781845759,-752.75,0.00021917,3]
[380460506,1755781845770,-480.0,0.00021917,3]
[380460507,1755781845782,-2822.53,0.00021917,3]
[380460508,1755781845794,-480.0,0.00021917,3]
[380460509,1755781845806,-480.0,0.00021917,3]
[380460510,1755781845817,-151.0,0.00021917,2]
[380460512,1755781845829,-151.0,0.00021917,2]
[380460513,1755781845840,-151.0,0.00021917,2]
[380460515,1755781845852,-1512.66,0.00021917,3]
[380460516,1755781845863,-480.0,0.00021917,3]
[380460517,1755781845875,-480.0,0.00021917,3]
[380460518,1755781845887,-724.96,0.00021917,3]
[380460519,1755781845899,-742.54,0.00021917,3]
[380460520,1755781845911,-500.0,0.00021917,3]
[380460521,1755781845926,-951.48,0.00021917,3]
[380460522,1755781845937,-215.86710461,0.00021917,3]
[380460523,1755781845949,-2544.51,0.00021917,3]
[380460524,1755781845962,-829.66,0.00021917,3]
[380460525,1755781845973,-829.66,0.00021917,3]
[380460526,1755781845986,-829.66,0.00021917,3]
[380460527,1755781845999,-524.72924993,0.00021917,3]
[380460528,1755781846011,-829.66,0.00021917,3]
[380460529,1755781846022,-829.66,0.00021917,3]
[380460530,1755781846035,-829.66,0.00021917,3]
[380460531,1755781846047,-829.66,0.00021917,3]
[380460532,1755781846059,-2165.59,0.00021917,3]
[380460533,1755781846070,-829.66,0.00021917,3]
[380460534,1755781846082,-829.66,0.00021917,3]
[380460535,1755781846094,-829.66,0.00021917,3]
[380460536,1755781846105,-829.66,0.00021917,3]
[380460537,1755781846117,-829.66,0.00021917,3]
[380460538,1755781846129,-829.66,0.00021917,3]
[380460539,1755781846140,-480.0,0.00021917,3]
[380460540,1755781846152,-829.66,0.00021917,3]
[380460541,1755781846163,-480.0,0.00021917,3]
[380460542,1755781846174,-829.66,0.00021917,3]
[380460543,1755781846186,-829.66,0.00021917,3]
[380460544,1755781846198,-829.66,0.00021917,3]
[380460545,1755781846209,-722.71,0.00021917,3]
[380460546,1755781846221,-829.66,0.00021917,3]
[380460547,1755781846232,-829.66,0.00021917,3]
[380460548,1755781846244,-829.66,0.00021917,3]
[380460549,1755781846256,-829.66,0.00021917,3]
[380460550,1755781846270,-829.66,0.00021917,3]
[380460551,1755781846293,-829.66,0.00021917,3]
[380460552,1755781846315,-829.84312574,0.00021917,3]
[380460553,1755781846333,-151.0,0.00021917,2]
[380460555,1755781846345,-151.0,0.00021917,2]
[380460556,1755781846357,-480.0,0.00021917,3]
[380460557,1755781846368,-480.0,0.00021917,3]
[380460558,1755781846380,-151.0,0.00021917,2]
[380460559,1755781846391,-480.0,0.00021917,3]
[380460560,1755781846403,-151.0,0.00021917,2]
[380460561,1755781846414,-480.0,0.00021917,3]
[380460562,1755781846427,-480.0,0.00021917,3]
[380460563,1755781846439,-521.64,0.00021917,3]
[380460564,1755781846450,-1107.69,0.00021917,3]
[380460565,1755781846462,-1865.75,0.00021917,3]
[380460566,1755781846473,-480.0,0.00021917,3]
[380460567,1755781846484,-4366.24,0.00021917,3]
[380460568,1755781846496,-3945.99,0.00021917,3]
[380460569,1755781846506,-480.0,0.00021917,3]
[380460570,1755781846517,-480.0,0.00021917,3]
[380460571,1755781846528,-480.0,0.00021917,3]
[380460572,1755781846542,-1193.29,0.00021917,3]
[380460573,1755781846553,-151.0,0.00021917,3]
[380460574,1755781846565,-1642.6,0.00021917,3]
[380460575,1755781846574,-164.70747224,0.00021917,3]
[380460576,1755781846583,-151.0,0.00021917,3]
[380460577,1755781846592,-480.0,0.00021917,3]
[380460578,1755781846601,-151.0,0.00021917,3]
[380460579,1755781846610,-151.0,0.00021917,2]
[380460580,1755781846619,-151.0,0.00021917,2]
[380460581,1755781846628,-151.0,0.00021917,2]
[380460582,1755781846638,-449.0,0.00021917,3]
[380460583,1755781846647,-2057.06,0.00021917,3]
[380460584,1755781846894,-1494.74,0.00021917,3]
[380460585,1755781846917,-151.0,0.00021917,2]
[380460586,1755781846934,-151.0,0.00021917,2]
[380460587,1755781846944,-480.0,0.00021917,3]
[380460588,1755781846953,-226.552052,0.00021917,2]
[380460589,1755781846964,-480.0,0.00021917,3]
[380460590,1755781846973,-480.0,0.00021917,3]
[380460591,1755781846982,-1858.17,0.00021917,3]
[380460592,1755781846992,-480.0,0.00021917,3]
[380460593,1755781847003,-884.94,0.00021917,3]
[380460594,1755781847012,-609.87,0.00021917,3]
[380460595,1755781847022,-500.0,0.00021917,3]
[380460596,1755781847031,-274.54457719,0.00021917,3]
[380460597,1755781847040,-480.0,0.00021917,3]
[380460598,1755781847050,-151.0,0.00021917,3]
[380460599,1755781847059,-813.7,0.00021917,3]
[380460600,1755781847068,-151.0,0.00021917,3]
[380460601,1755781847078,-1605.62,0.00021917,3]
[380460602,1755781847089,-151.0,0.00021917,2]
[380460603,1755781847098,-1410.65,0.00021917,3]
[380460605,1755781847107,-151.0,0.00021917,3]
[380460607,1755781847117,-1172.33,0.00021917,3]
[380460609,1755781847126,-151.0,0.00021917,3]
[380460611,1755781847135,-1264.54,0.00021917,3]
[380460613,1755781847146,-480.0,0.00021917,3]
[380460615,1755781847155,-333.30545321,0.00021917,3]
[380460617,1755781847164,-480.0,0.00021917,3]
[380460619,1755781847174,-1284.89,0.00021917,3]
[380460621,1755781847183,-151.0,0.00021917,3]
[380460622,1755781847193,-14778.53,0.00021917,3]
[380460623,1755781847202,-480.0,0.00021917,3]
[380460624,1755781847211,-480.0,0.00021917,3]
[380460625,1755781847220,-151.0,0.00021917,2]
[380460626,1755781847229,-2469.04,0.00021917,3]
[380460627,1755781847239,-151.0,0.00021917,2]
[380460628,1755781847248,-480.0,0.00021917,3]
[380460629,1755781847259,-480.0,0.00021917,3]
[380460630,1755781847268,-582.75,0.00021917,3]
[380460631,1755781847278,-480.0,0.00021917,3]
[380460632,1755781847288,-480.0,0.00021917,3]
[380460633,1755781847297,-4587.59,0.00021917,3]
[380460634,1755781847307,-2194.52,0.00021917,3]
[380460635,1755781847316,-480.0,0.00021917,3]
[380460636,1755781847326,-480.0,0.00021917,3]
[380460637,1755781847335,-480.0,0.00021917,3]
[380460638,1755781847346,-480.0,0.00021917,3]
[380460639,1755781847356,-2283.22,0.00021917,3]
[380460640,1755781847366,-404.607234,0.00021917,3]
[380460641,1755781847375,-5569.86,0.00021917,3]
[380460642,1755781847385,-480.0,0.00021917,3]
[380460643,1755781847394,-999.63,0.00021917,3]
[380460645,1755781847404,-5861.91,0.00021917,3]
[380460647,1755781847416,-480.0,0.00021917,3]
[380460649,1755781847425,-480.0,0.00021917,3]
[380460651,1755781847435,-480.0,0.00021917,3]
[380460653,1755781847444,-480.0,0.00021917,3]
[380460654,1755781847454,-480.0,0.00021917,3]
[380460656,1755781847463,-781.91,0.00021917,3]
[380460658,1755781847472,-480.0,0.00021917,3]
[380460660,1755781847482,-480.0,0.00021917,3]
[380460662,1755781847491,-607.1,0.00021917,3]
[380460664,1755781847500,-480.0,0.00021917,3]
[380460666,1755781847509,-4217.27,0.00021917,3]
[380460668,1755781847518,-12323.75443595,0.00021917,3]
[380460696,1755781847784,-507.43556405,0.00021917,3]
[380460698,1755781847793,-480.0,0.00021917,3]
[380460700,1755781847802,-480.0,0.00021917,3]
[380460702,1755781847811,-151.95015988,0.00021917,3]
[380460739,1755781848322,-784.7700233,0.00020365,2]
[380460740,1755781848332,-392.38501165,0.00020585,2]
[380460741,1755781848342,-457.13799712,0.00021917,3]
[380460742,1755781848351,-151.0,0.00021917,2]
[380460743,1755781848361,-992.67,0.00021917,3]
[380460744,1755781848371,-508.84,0.00021917,3]
[380460745,1755781848380,-480.0,0.00021917,3]
[380460746,1755781848389,-480.0,0.00021917,3]
[380460747,1755781848399,-480.0,0.00021917,3]
[380460748,1755781848408,-480.0,0.00021917,3]
[380460749,1755781848417,-151.0,0.00021917,2]
[380460750,1755781848426,-480.0,0.00021917,3]
[380460751,1755781848435,-480.0,0.00021917,3]
[380460752,1755781848445,-151.0,0.00021917,2]
[380460753,1755781848454,-480.0,0.00021917,3]
[380460754,1755781848464,-522.46,0.00021917,3]
[380460755,1755781848473,-151.0,0.00021917,2]
[380460756,1755781848483,-749.26,0.00021917,3]
[380460757,1755781848492,-480.0,0.00021917,3]
[380460758,1755781848501,-2002.4,0.00021917,3]
[380460759,1755781848511,-480.0,0.00021917,3]
[380460760,1755781848520,-532.07,0.00021917,3]
[380460761,1755781848529,-151.0,0.00021917,2]
[380460762,1755781848538,-480.0,0.00021917,3]
[380460763,1755781848548,-480.0,0.00021917,3]
[380460764,1755781848558,-2334.89336843,0.0002192,2]
[380460781,1755781849465,-266.0,0.0002192,2]
[380460783,1755781850346,-408.0,0.00021774,2]
[380460784,1755781850356,-399.10663157,0.0002192,2]
[380460785,1755781850367,-1454.56585413,0.0002193,2]
[380460786,1755781850383,-1545.43414587,0.0002193,2]
[380460787,1755781850393,-800.0,0.00021931,2]
[380460788,1755781850402,-84.68454733,0.0002194,2]
[380460791,1755781851115,-312.0667886,0.00019716,2]
[380460792,1755781851131,-187.93321139,0.00019716,2]
[380460793,1755781851141,-480.0,0.00021917,3]
[380460794,1755781851151,-480.0,0.00021917,3]
[380460795,1755781851161,-480.0,0.00021917,3]
[380460796,1755781851170,-505.33,0.00021917,3]
[380460797,1755781851180,-2915.31545267,0.0002194,2]
[380460798,1755781851190,-447.51469025,0.00021945,2]
[380460799,1755781851200,-3000.0,0.0002195,2]
[380460800,1755781851210,-1217.0,0.00021957,2]
[380460801,1755781851220,-3000.0,0.0002196,2]
[380460802,1755781851230,-2500.0,0.00021964,2]
[380460803,1755781851240,-2500.0,0.00021964,2]
[380460804,1755781851250,-715.1305272,0.00021964,2]
[380460805,1755781851260,-1600.56592504,0.00021964,2]
[380460806,1755781851270,-2500.0,0.00021964,2]
[380460807,1755781851280,-692.37797045,0.00021964,2]
[380460808,1755781851293,-600.0,0.00021964,2]
[380460809,1755781851306,-216.27800204,0.00021964,2]
[380460810,1755781851315,-2500.0,0.00021964,2]
[380460811,1755781851325,-3289.998086,0.0002197,2]
[380460812,1755781851335,-500.0,0.00021973,2]
[380460813,1755781851345,-500.0,0.00021973,2]
[380460814,1755781851355,-500.0,0.00021973,2]
[380460815,1755781851364,-500.0,0.00021973,2]
[380460816,1755781851374,-500.0,0.00021973,2]
[380460817,1755781851383,-500.0,0.00021973,2]
[380460818,1755781851392,-500.0,0.00021973,2]
[380460819,1755781851401,-157.28972314,0.00021973,2]
[380460820,1755781851411,-500.0,0.00021973,2]
[380460821,1755781851420,-500.0,0.00021973,2]
[380460822,1755781851430,-500.0,0.00021973,2]
[380460823,1755781851439,-500.0,0.00021973,2]
[380460824,1755781851448,-500.95418562,0.00021973,2]
[380460825,1755781851457,-500.0,0.00021973,2]
[380460826,1755781851467,-500.0,0.00021973,2]
[380460827,1755781851476,-350.1056587,0.00021973,2]
[380460828,1755781851485,-470.68499892,0.00021973,2]
[380460829,1755781851495,-504.82827955,0.00021973,2]
[380460830,1755781851504,-500.0,0.00021973,2]
[380460831,1755781851514,-447.39980404,0.00021973,2]
[380460832,1755781851524,-500.0,0.00021973,2]
[380460833,1755781851533,-500.0,0.00021973,2]
[380460834,1755781851545,-226.00644,0.00021973,2]
[380460835,1755781851555,-441.79558261,0.00021973,2]
[380460836,1755781851564,-750.67,0.00022,7]
[380460837,1755781851574,-250.0,0.00022,10]
[380460838,1755781851583,-645.0,0.00022,2]
[380460839,1755781851592,-151.0,0.00022,7]
[380460840,1755781851601,-800.0,0.00022001,2]
[380460841,1755781851611,-1217.0,0.00022052,2]
[380460842,1755781851620,-447.51469025,0.00022055,2]
[380460843,1755781851630,-1000.0,0.00022091,2]
[380460844,1755781851641,-600.0,0.00022092,2]
[380460845,1755781851650,-226.00644,0.000221,6]
[380460846,1755781851660,-250.0,0.000221,10]
[380460847,1755781851670,-201.0,0.0002211,3]
[380460848,1755781851680,-151.0,0.00022164,7]
[380460849,1755781851689,-151.0,0.00022164,7]
[380460850,1755781851699,-447.51469025,0.00022164,2]
[380460851,1755781851709,-500.0,0.00022173,2]
[380460852,1755781851719,-500.0,0.00022173,2]
[380460853,1755781851728,-500.0,0.00022173,2]
[380460854,1755781851737,-500.0,0.00022173,2]
[380460855,1755781851748,-500.0,0.00022173,2]
[380460856,1755781851757,-502.70577595,0.00022173,2]
[380460857,1755781851767,-500.0,0.00022173,2]
[380460858,1755781851776,-500.0,0.00022173,2]
[380460859,1755781851786,-500.0,0.00022173,2]
[380460860,1755781851795,-500.0,0.00022173,2]
[380460861,1755781851804,-500.0,0.00022173,2]
[380460862,1755781851814,-500.0,0.00022173,2]
[380460863,1755781851824,-500.0,0.00022173,2]
[380460864,1755781851833,-500.0,0.00022173,2]
[380460865,1755781851842,-500.0,0.00022173,2]
[380460866,1755781851852,-500.0,0.00022173,2]
[380460867,1755781851861,-500.0,0.00022173,2]
[380460868,1755781851870,-150.0,0.00022173,2]
[380460869,1755781851879,-279.41198643,0.00022191,2]
[380460870,1755781851888,-1254.08221306,0.00022191,2]
[380460871,1755781851898,-151.0,0.00022191,3]
[380460872,1755781851908,-500.0,0.00022191,3]
[380460873,1755781851919,-151.0,0.00022191,3]
[380460874,1755781851930,-151.0,0.00022191,3]
[380460875,1755781851939,-500.0,0.00022191,3]
[380460876,1755781851948,-500.0,0.00022191,3]
[380460877,1755781851959,-151.0,0.00022191,3]
[380460878,1755781851968,-151.87777263,0.00022191,3]
[380460879,1755781851977,-151.0,0.00022191,3]
[380460880,1755781851987,-500.0,0.00022191,3]
[380460881,1755781851997,-151.0,0.00022191,3]
[380460882,1755781852007,-151.0,0.00022191,3]
[380460883,1755781852016,-151.0,0.00022191,3]
[380460884,1755781852025,-151.0,0.00022191,3]
[380460885,1755781852035,-449.0,0.00022191,3]
[380460886,1755781852044,-500.0,0.00022191,3]
[380460887,1755781852053,-151.0,0.00022191,3]
[380460888,1755781852063,-151.28036725,0.00022191,2]
[380460889,1755781852073,-151.0,0.00022191,3]
[380460890,1755781852082,-151.0,0.00022191,3]
[380460891,1755781852092,-12690.45384448,0.00022191,7]
[380460892,1755781852102,-465.53014516,0.00022191,3]
[380460893,1755781852112,-483.96820509,0.00022191,3]
[380460895,1755781852122,-238.92134381,0.00022191,3]
[380460897,1755781852132,-1475.36,0.00022191,3]
[380460899,1755781852142,-480.04926687,0.00022191,3]
[380460901,1755781852152,-480.0,0.00022191,3]
[380460903,1755781852162,-1261.29,0.00022191,3]
[380460905,1755781852172,-480.0,0.00022191,3]
[380460906,1755781852182,-480.0,0.00022191,3]
[380460907,1755781852192,-480.0,0.00022191,3]
[380460908,1755781852202,-480.0,0.00022191,3]
[380460909,1755781852211,-480.0,0.00022191,3]
[380460910,1755781852220,-480.0,0.00022191,3]
[380460911,1755781852230,-465.09714266,0.00022191,3]
[380460912,1755781852239,-480.0,0.00022191,3]
[380460913,1755781852249,-480.0,0.00022191,3]
[380460914,1755781852258,-480.0,0.00022191,3]
[380460915,1755781852267,-480.0,0.00022191,3]
[380460916,1755781852278,-480.0,0.00022191,3]
[380460917,1755781852288,-480.0,0.00022191,3]
[380460918,1755781852340,-480.0,0.00022191,3]
[380460919,1755781852350,-286.63029266,0.00022191,3]
[380460920,1755781852359,-480.0,0.00022191,3]
[380460921,1755781852369,-437.94841319,0.00022191,3]
[380460922,1755781852379,-448.86257244,0.00022191,3]
[380460923,1755781852388,-480.0,0.00022191,3]
[380460924,1755781852398,-480.0,0.00022191,3]
[380460925,1755781852408,-480.0,0.00022191,3]
[380460926,1755781852417,-480.0,0.00022191,3]
[380460927,1755781852427,-480.0,0.00022191,3]
[380460928,1755781852436,-480.0,0.00022191,3]
[380460929,1755781852446,-480.0,0.00022191,3]
[380460930,1755781852455,-480.0,0.00022191,3]